Cogmind - Beta 10.2 @@@ ROGUE MODE // 2021.05.28 @ 11:14:27 Player: Vagkalis Result: Destroyed by G-47 Trooper with Particle Gun Performance ------------- Evolutions (2) 1000 Regions Visited (4) 800 Robots Destroyed (76) 380 Value Destroyed (1984) 1984 Prototype IDs (1) 20 Alien Tech Used (0) 0 Bonus (0) 0 TOTAL SCORE: 4184 Bonus ------- None Cogmind --------- Core Integrity 0/550 Matter 119/300 Energy 218/240 System Corruption 0% Temperature Cool (136) Movement Treading (260) Ox5 Location -8/Materials Parts ------- > --- POWER (1) -------- Nuclear Core > --- PROPULSION (2) --- Light Treads > --- UTILITY (6) ------ Large Storage Unit Large Storage Unit Large Storage Unit Large Storage Unit High-capacity Storage Unit Advanced Visual Processing Unit > --- WEAPON (2) ------- Plasma Cannon > --- INVENTORY (36) --- Improved Ion Engine Improved Heat Sink Cooling System Large Storage Unit High-capacity Matter Pod (200) Improved Signal Interpreter Advanced Signal Interpreter Improved Salvage Targeting Computer Improved Salvage Targeting Computer Hardened Light Armor Plating Heavy Assault Rifle Chainsword Peak State ------------ > --- POWER ------------ Improved Ion Engine > --- PROPULSION ------- Light Treads Wheel > --- UTILITY ---------- Large Storage Unit Large Storage Unit Large Storage Unit High-capacity Storage Unit Advanced Visual Processing Unit Hardened Light Armor Plating > --- WEAPON ----------- Plasma Cannon Heavy Assault Rifle > --- INVENTORY -------- Improved Ion Engine Nuclear Core Light Treads Improved Treads Armored Treads Cooling System Large Storage Unit Large Storage Unit High-capacity Matter Pod Improved Signal Interpreter Advanced Signal Interpreter Improved Salvage Targeting Computer Improved Salvage Targeting Computer Hardened Light Armor Plating Plasma Cannon Heavy Assault Rifle High-powered Shotgun Flak Cannon Grenade Launcher Chainsword [Rating: 23] Favorites ----------- Power Improved Ion Engine Engine Improved Ion Engine Power Core Nuclear Core Propulsion Light Treads Treads Light Treads Wheel Compact Wheel Utility Large Storage Unit Device Sensor Array Storage Large Storage Unit Processor Advanced Visual Processing Unit Protection Hardened Light Armor Plating Weapon Heavy Particle Cannon Energy Gun Small Laser Energy Cannon Heavy Particle Cannon Ballistic Gun Assault Rifle Ballistic Cannon Flak Cannon Launcher Grenade Launcher Build | -11 -10 -9 -9 -8 ------- Run | Scr Mat Mat Min Mat Slots Evolved 4 | . . 2 . 2 Power . | . . . . . Propulsion . | . . . . . Utility 4 | . . 2 . 2 Weapon . | . . . . . Parts Attached 79 | 7 9 22 3 38 Power 7 | 1 2 2 . 2 Engine 6 | 1 2 2 . 1 Core 1 | . . . . 1 Reactor . | . . . . . Propulsion 19 | 3 2 3 . 11 Treads 13 | 2 1 2 . 8 Leg . | . . . . . Wheel 6 | 1 1 1 . 3 Hover . | . . . . . Flight . | . . . . . Utility 21 | 1 3 7 . 10 Device 3 | . . 3 . . Storage 13 | 1 3 3 . 6 Processor 1 | . . . . 1 Hackware . | . . . . . Protection 4 | . . 1 . 3 Artifact . | . . . . . Weapon 32 | 2 2 10 3 15 Energy Gun 4 | 1 . 3 . . Energy Cannon 8 | . . 4 . 4 Ballistic Gun 15 | 1 2 3 2 7 Ballistic Cannon 1 | . . . . 1 Launcher 4 | . . . 1 3 Special Weapon . | . . . . . Impact Weapon . | . . . . . Slashing Weapon . | . . . . . Piercing Weapon . | . . . . . Special Melee Weapon . | . . . . . Unidentified Prototypes 1 | . . 1 . . Parts Lost 25 | . 3 5 . 17 Power 1 | . . . . 1 Propulsion 9 | . 1 1 . 7 Utility 4 | . . 2 . 2 Weapon 11 | . 2 2 . 7 Highest Loss Streak 11 | . 3 2 . 11 Average Slot Usage (%) 95 | . 96 96 88 94 Engine 10 | . 14 11 11 8 Treads 11 | . 14 11 11 11 Wheel 9 | . 13 10 11 5 Device 2 | . . 4 . . Storage 33 | . 27 32 33 36 Protection 6 | . . 3 . 14 Energy Cannon 6 | . . 8 11 6 Ballistic Gun 12 | . 23 11 7 10 Naked Turns . | . . . . . Heaviest Build 118 | 10 56 85 80 118 Greatest Support 43 | 10 20 20 16 43 Greatest Overweight (x) 11 | . 5 5 4 11 Average Overweight (x) 3 | . 3 3 4 4 Largest Inventory Capacity 36 | 6 18 24 24 36 Average Capacity 24 | 5 16 23 24 28 Most Carried 28 | 4 15 24 24 28 Average Carried 20 | 3 9 22 24 23 Final Capacity 36 | 6 18 24 24 36 Final Carried 24 | 4 15 24 24 12 Class Distribution -------------------- 83% | Hauler-Mutant 16% | Mutant Dominant Class ---------------- Mutant | -10/Materials Hauler-Mutant | -9/Materials Hauler-Mutant | -9/Mines Hauler-Mutant | -8/Materials Resources | -11 -10 -9 -9 -8 ----------- Run | Scr Mat Mat Min Mat Matter Collected 1631 | 226 353 473 108 471 Remotely . | . . . . . Salvage Created 2400 | . 531 725 68 1076 Parts 147 | . 25 63 14 45 Haulers Intercepted 4 | . 1 2 . 1 Recyclers Shooed 1 | . . 1 . . Parts Field Recycled . | . . . . . Retrieved Matter . | . . . . . Parts Self-Destructed . | . . . . . Prevented . | . . . . . Kills | -11 -10 -9 -9 -8 ------- Run | Scr Mat Mat Min Mat Combat Hostiles Destroyed 63 | . 9 20 8 26 Guns 31 | . 9 10 1 11 Cannons 21 | . . 10 2 9 AOE 10 | . . . 5 5 Classes Destroyed 9 | . 3 4 . 2 Worker 3 | . . 1 . 2 Builder 3 | . . 3 . . Hauler 4 | . 1 2 . 1 Recycler 2 | . 1 . . 1 Watcher 1 | . . . . 1 Swarmer 25 | . . 10 8 7 Grunt 32 | . 9 8 . 15 Sentry 5 | . . 2 . 3 Hunter 1 | . . . . 1 Best Kill Streak 7 | . 4 6 3 7 Combat Bots Only 7 | . 4 4 3 7 Max Kills in Single Turn 4 | . 1 2 3 4 Gunslinging . | . . . . . Exploded 3 | . . . 3 3 Melee . | . . . . . Uniques/NPCs Destroyed . | . . . . . Combat | -11 -10 -9 -9 -8 -------- Run | Scr Mat Mat Min Mat Damage Taken 5260 | . 667 965 123 3505 Core 837 | . 86 187 14 550 Absorbed by Shields . | . . . . . Core Remaining (%) 71 | 100 65 . 49 . Volleys Fired 219 | . 45 66 8 100 Largest 2 | . 2 2 2 2 Hottest 140 | . 60 140 105 105 Shots Fired 392 | . 84 119 16 173 Gun 254 | . 84 66 5 99 Cannon 130 | . . 53 8 69 Launcher 8 | . . . 3 5 Special . | . . . . . Kinetic 236 | . 74 51 5 106 Thermal 148 | . 10 68 8 62 Explosive 8 | . . . 3 5 Electromagnetic . | . . . . . Robot Hit Streak 27 | . 14 9 6 27 Robot Miss Streak 8 | . 2 8 1 6 Penetration Max . | . . . . . Secondary Targets . | . . . . . Shots Hit Robots 265 | . 63 71 10 121 Core Hits 131 | . 24 32 9 66 Critical Hits 5 | . . 2 . 3 Critical Kills . | . . . . . Critical Parts Destroyed 5 | . . 2 . 3 Melee Attacks . | . . . . . Impact . | . . . . . Slashing . | . . . . . Piercing . | . . . . . Sneak Attacks . | . . . . . Combat Hostiles . | . . . . . Follow-up Attacks . | . . . . . Damage Inflicted 5153 | . 652 1480 384 2637 Guns 2066 | . 652 547 24 843 Cannons 2373 | . . 925 150 1298 Explosions 694 | . . . 210 484 Melee . | . . . . . Ramming 20 | . . 8 . 12 Kinetic 2063 | . 576 404 24 1059 Thermal 2376 | . 76 1068 150 1082 Explosive 694 | . . . 210 484 Electromagnetic . | . . . . . Impact . | . . . . . Slashing . | . . . . . Piercing . | . . . . . Highest Corruption . | . . . . . Average Corruption . | . . . . . Corruption Purged . | . . . . . Overload Shots . | . . . . . Overflow Damage 59 | . . 24 5 30 Projectiles 39 | . . 24 5 10 Explosions 20 | . . . . 20 Melee . | . . . . . Knockbacks 8 | . . . . 8 Impact . | . . . . . Kinetic 7 | . . . . 7 Secondary 1 | . . . . 1 Self-Inflicted Damage 35 | . . . 35 . Shots 2 | . . . 2 . Rammed 2 | . . 1 . 1 Targets Rammed 3 | . . 1 . 2 Kicked . | . . . . . Crushed 1 | . . . . 1 Highest Temperature 396 | . 108 390 184 396 Average Temperature 103 | . 46 106 75 117 Received Heat Transfer 2016 | . 357 309 . 1350 Effects 9 | . . 2 . 7 Energy Bleed 3 | . . 1 . 2 Interference 4 | . . . . 4 Short Circuit 1 | . . 1 . . Damage (minor) 1 | . . . . 1 Siege Activations . | . . . . . Robots Corrupted . | . . . . . Combat Hostiles . | . . . . . Parts Fried . | . . . . . Impact Corruptions . | . . . . . Robots Melted 1 | . . . . 1 Combat Hostiles 1 | . . . . 1 Parts Melted 1 | . . . . 1 Heat Transferred 3888 | . 175 1692 222 1799 Parts Sabotaged . | . . . . . Parts Stolen . | . . . . . Parts Stripped . | . . . . . Power Chain Reactions . | . . . . . Missiles Intercepted . | . . . . . Alert | -11 -10 -9 -9 -8 ------- Run | Scr Mat Mat Min Mat Peak Influence 368 | . 170 212 307 368 Initial 119 | . . 42 82 119 Average 119 | . 87 72 255 192 Maximum Alert Level 1 | . . 1 1 1 Low Security (%) 76 | 100 100 94 20 43 Level 1 23 | . . 5 79 56 Level 2 . | . . . . . Level 3 . | . . . . . Level 4 . | . . . . . Level 5 . | . . . . . High Security . | . . . . . Max Security . | . . . . . Squads Dispatched 9 | . 2 . . 7 Investigation . | . . . . . Extermination . | . . . . . Reinforcement 7 | . 2 . . 5 Assault . | . . . . . Garrison 2 | . . . . 2 Intercept . | . . . . . Construction Impeded 1 | . . . . 1 Haulers Reinforced . | . . . . . Stealth | -11 -10 -9 -9 -8 --------- Run | Scr Mat Mat Min Mat Distress Signals 8 | . . 3 . 5 Communications Jammed . | . . . . . Distress Signals . | . . . . . Times Spotted 123 | . 16 46 9 52 Peak Tracking Total 10 | . 6 5 3 10 Tactical Retreats 11 | . . 6 . 5 Traps | -11 -10 -9 -9 -8 ------- Run | Scr Mat Mat Min Mat Traps Triggered 4 | . 2 2 . . Indirectly . | . . . . . Trap Hack Attempts . | . . . . . Triggered . | . . . . . Disarmed . | . . . . . Reprogrammed . | . . . . . Reused . | . . . . . Traps Extracted . | . . . . . Installed . | . . . . . Triggered . | . . . . . Machines | -11 -10 -9 -9 -8 ---------- Run | Scr Mat Mat Min Mat Machines Disabled 4 | . . 1 3 . Max in Single Turn 2 | . . 1 2 . Machines Sabotaged . | . . . . . Garrisons Compromised . | . . . . . Overloaded Fab Kills . | . . . . . Fab Network Shutdowns . | . . . . . Hacking | -11 -10 -9 -9 -8 --------- Run | Scr Mat Mat Min Mat Machines Accessed 8 | . 1 6 . 1 Terminals 5 | . 1 4 . . Fabricators . | . . . . . Repair Stations 1 | . . 1 . . Recycling Units 1 | . . 1 . . Scanalyzers 1 | . . . . 1 Garrison Access . | . . . . . Total Hacks 21 | . 2 17 . 2 Successful 16 | . 1 13 . 2 Failed 5 | . 1 4 . . Catastrophic 1 | . 1 . . . Database Lockouts . | . . . . . Manual 1 | . 1 . . . Terminals 9 | . 2 7 . . Fabricators . | . . . . . Repair Stations 8 | . . 8 . . Recycling Units 2 | . . 2 . . Scanalyzers 2 | . . . . 2 Garrison Access . | . . . . . Terminal Hacks 5 | . 1 4 . . Robot Analysis 1 | . . 1 . . Unreport Threat 1 | . . 1 . . Locate Traps 1 | . 1 . . . Dispatch Records 1 | . . 1 . . Zone Layout 1 | . . 1 . . Fabricator Hacks . | . . . . . Repair Station Hacks 7 | . . 7 . . Scan Component 3 | . . 3 . . Repair 3 | . . 3 . . Refit 1 | . . 1 . . Recycling Unit Hacks 2 | . . 2 . . Retrieve Components 2 | . . 2 . . Scanalyzer 2 | . . . . 2 Insert Component 1 | . . . . 1 Analyze 1 | . . . . 1 Garrison Access Hacks . | . . . . . Unauthorized Hacks . | . . . . . Terminals . | . . . . . Fabricators . | . . . . . Repair Stations . | . . . . . Recycling Units . | . . . . . Scanalyzers . | . . . . . Garrison Access . | . . . . . Data Cores Recovered . | . . . . . Used . | . . . . . Hacking Detections 6 | . 1 5 . . Full Trace Events . | . . . . . Feedback Events . | . . . . . Feedback Blocked . | . . . . . Robot Schematics Acquired . | . . . . . Robots Built . | . . . . . Matter . | . . . . . Time . | . . . . . Total Robot Build Rating . | . . . . . Part Schematics Acquired 1 | . . . . 1 Parts Built . | . . . . . Matter . | . . . . . Time . | . . . . . Total Part Build Rating . | . . . . . Parts Repaired 3 | . . 3 . . Time 90 | . . 90 . . Parts Recycled . | . . . . . Recycled Matter . | . . . . . Retrieved Matter . | . . . . . Retrieved Components 9 | . . 9 . . Parts Scanalyzed 1 | . . . . 1 Part Schematics Acquired 1 | . . . . 1 Parts Damaged . | . . . . . Bothacking | -11 -10 -9 -9 -8 ------------ Run | Scr Mat Mat Min Mat Used RIF Installer . | . . . . . Robots Hacked . | . . . . . Non-combat . | . . . . . Combat . | . . . . . Robot Hacks Applied . | . . . . . Relay Couplers Released . | . . . . . Robots Rewired . | . . . . . Allies Hacked . | . . . . . Hacks Repelled . | . . . . . Allies | -11 -10 -9 -9 -8 -------- Run | Scr Mat Mat Min Mat Total Allies . | . . . . . Largest Group . | . . . . . Highest-Rated Group . | . . . . . Highest-Rated Ally . | . . . . . Total Orders . | . . . . . Ally Attacks . | . . . . . Total Damage . | . . . . . Kills . | . . . . . Allies Corrupted . | . . . . . Allies Melted . | . . . . . Intel | -11 -10 -9 -9 -8 ------- Run | Scr Mat Mat Min Mat Robot Analysis Total 1 | . . 1 . . Derelict Logs Recovered . | . . . . . Drone Launches . | . . . . . Drone Recoveries . | . . . . . Exploration | -11 -10 -9 -9 -8 ------------- Run | Scr Mat Mat Min Mat Turns Passed 4747 | 56 678 2249 129 1635 Spaces Moved 2110 | 53 356 966 73 662 Core 10 | 10 . . . . Treads 910 | . 81 502 . 327 Legs . | . . . . . Wheels 1190 | 43 275 464 73 335 Hover . | . . . . . Flight . | . . . . . Fastest Speed 50 | 50 80 140 140 140 Average Speed 172 | 74 134 186 140 184 Slowest Speed 260 | 80 200 240 140 260 Overloaded Moves . | . . . . . Propulsion Burnouts . | . . . . . Robots Hopped . | . . . . . Cave-ins Triggered . | . . . . . Exploration Rate (%) 36 | 4 54 51 20 52 Regions Visited 4 Branch Regions 1 Pre-discovered Areas . | . . . . . Known Exits Taken . | . . . . . Unknown Exits Taken 4 | 1 1 1 1 . Scrap Searched 1 | . . . 1 . Spaces Dug . | . . . . . Terrain Destroyed 89 | . . 13 28 48 Melee . | . . . . . Projectile 28 | . . 13 2 13 AOE 61 | . . . 26 35 Terrain Rammed . | . . . . . Walls Destroyed . | . . . . . Machines Disabled . | . . . . . Actions | -11 -10 -9 -9 -8 --------- Run | Scr Mat Mat Min Mat Total 2829 | 66 479 1297 84 903 Wait 310 | 1 47 192 . 70 Move 2106 | 52 355 965 72 662 Hop . | . . . . . Pick Up 72 | 6 18 31 . 17 Fast Attach 9 | 4 1 3 . 1 Attach 30 | 2 3 7 . 18 Detach . | . . . . . Swap 40 | 1 5 12 3 19 Drop 40 | . 5 20 1 14 Fire 219 | . 45 66 8 100 Melee . | . . . . . Ram . | . . . . . Kick . | . . . . . Crush 3 | . . 1 . 2 Escape Stasis . | . . . . . Rewire . | . . . . . Trap . | . . . . . Miscellaneous . | . . . . . Route ------- -11/Scrapyard -10/Materials -9/Materials (discovered 3 exits: *Mat / [*Min x2]) -9/Mines -8/Materials (discovered 1 exit: [*Fac]) History --------- Turn | Location | Event 2 | -11/Scrapyard | Met Revision 17 9 | -11/Scrapyard | Discovered new exit (range 15) 57 | -11/Scrapyard | Entered Materials 219 | -10/Materials | Lost 3 parts (1n2w) 301 | -10/Materials | Build established: Mutant 564 | -10/Materials | Discovered new exit (range 14) 735 | -10/Materials | Entered another Materials area 735 | -9/Materials | Evolved 2 slots: Utility x2 1103 | -9/Materials | Build established: Hauler-Mutant 1639 | -9/Materials | Discovered new exit (range 14) 1720 | -9/Materials | Repaired Lgt. Treads 1758 | -9/Materials | Repaired Hvy. Particle Cannon 1789 | -9/Materials | Repaired Lgt. Treads 2283 | -9/Materials | Discovered new exit (range 12) 2925 | -9/Materials | Discovered new exit (range 12) 2984 | -9/Materials | Entered Mines 3071 | -9/Mines | Core integrity fell below 50% 3099 | -9/Mines | Discovered new exit (range 11) 3113 | -9/Mines | Entered Materials 3113 | -8/Materials | Evolved 2 slots: Utility x2 3597 | -8/Materials | Discovered new exit (range 16) 4267 | -8/Materials | Lost 4 parts (2n1u1w) 4637 | -8/Materials | Garrison activated, responded to threat 4658 | -8/Materials | Core integrity fell below 50% 4683 | -8/Materials | Core integrity fell below 20% 4720 | -8/Materials | Destroyed 7 combat bots 4748 | -8/Materials | Destroyed by G-47 Trooper with Particle Gun Last Messages --------------- 04725_ Hvy. Assault Rifle destroyed. 04727_ K-01 Serf collects debris. 04728_ G-47 Trooper heat damages Aluminum Leg. 04728_ K-01 Serf collects debris. 04728_ Penetrated by Slug. 04729_ G-47 Trooper heat short circuits Particle Gun. 04730_ U-05 Engineer builds a Wall. 04731_ K-01 Serf collects debris. 04734_ Penetrated by Slug. 04735_ H-55 Commando critical meltdown. 04735_ Lgt. Nuclear Core melted. 04735_ K-01 Serf collects debris. 04736_ Destroyed Sml. Matter Pod. 04740_ K-01 Serf collects debris. 04742_ Acquired Imp. Heat Sink. 04743_ Overheating: System interference. 04743_ Plasma Cannon temporarily disabled. 04743_ K-01 Serf collects debris. 04743_ Acquired 20 matter. 04746_ K-01 Serf collects debris. Map ----- +----------------------------------------------------+ | ?????????????########## ###### !#???????????????? | | ???????????? # !#???????????????? | | ???????????""" + ####!!##???????????????? | | ?????????? """ # ############????????????????? | | #####????? """ # # #??????????????????? | | #????# # # #??????????????????? | | #????# """ + # #??????????????????? | | #????# """ # # /// #??????????????????? | | #??????""" # + // #??????????????????? | | /=#???????? # # // #??????????#???????? | | ==#???????###+### # #????????? #???????? | | ####???????# + #???????? #???????? | | ##??????????# # #???????? #???????? | | ????????????# ##########??????? #???????? | | ????????????# #?##?????######## #####+??? | | ############# ########## t ?? | | k ?? | | ??? | | u """ ^ ???? | | ##+####### !%= """"" """???? | | # ###+##### * """" G"???? | | # """ ## ??# k """a g """ #? | | # """ ## ## *k !!] = #? | | + """ ##! ## %!%=% * !!] [%* #? | | # ## ## [%%[%= = !] #???????? | | # ## !! ## @=############+##???????? | | # ! ## ![ ## %#?????????????????????? | | # ??# ! ## ![#?????????????????????? | | #######??# ## #????????????? ?? #? | | # #????????# """ ## #????????????? ?# ? | | # #????? # """ ## %! #????????????? ?# ? | | # #### # """ ## #????????????? ?# ? | | # # # ??? ## #?????????????#+## #? | | ##+#??## #?????######### #? | | ##*# ## ##### ?????# # #? | | ##+########### ?????# + #? | | %#?????????# ????# # #? | | " #?????????# #####+### ????# # #? | | " *#?????????# #??? ??# ????# # #? | | "%%########### #???""??# #### # #? | | *%/== #???""??# #######+### ^## | | ! ####### #???????# | | #/### # ???# | | / " ???# %% | | [ ## T !???######## %#####+####### | | #??? !????????###% #=[ #??? | | ##### ##### ##????????######## #= """"" #??? | | ##% ##??##+########### # """"" #??? | | ## #???# # # """"" #??? | | ## #???# """ """ # # #??? | +----------------------------------------------------+ Best States ------------- Heat Dissipation 50 Energy Generation 14 Energy Capacity 265 Matter Stores 300 Matter Capacity 300 Sight Range 20 Robot Scan Range 10 Terrain Scan Density 10 Armor Coverage 150 Weapon Shielding 33 Evasion (%) 50 Recoil Reduction 2 Item Schematics ----------------- Hcp. Storage Unit | -8/Materials | Scanalyzed Robot Schematics ------------------ None Fabricated ------------ Nothing Alien Tech Used ----------------- None Achievements -------------- None Challenges ------------ None Game ------ Seed MachineXenonNegator Manual? 0 Play Time 00:36:03 Cumulative 58.7 hours Start 2021.05.28 @ 10:37:20 End 2021.05.28 @ 11:14:27 Sessions 1 Manual Loads 0 Difficulty Rogue Special Mode None Game No. 83 Rogue 83 Adventurer 0 Explorer 0 Win Type - Total 1 Types 1/0/0/0/0/0/0/0/0 Lore% 52 Gallery% 51 Achievement% 40 Wizard Run 0 Options --------- ASCII 0 Keyboard 0 Movement Mouse Keybinds 0 Fullscreen 1 Font 14/Smallcaps Map View 72x54 Tactical HUD 1 Map Filters NONE Filters NONE Steam 1 RUN: 04c5844a-388e-4de4-be2a-d29ee00459c4